fUST/lending_fUST_20250408
["ID","MTS","AMOUNT","RATE_DAILY","PERIOD"]
[357465473,1744075860701,-1564.56,0.00026575,2]
[357465474,1744075860711,-806.0,0.00026575,2]
[357465475,1744075860724,-2890.56,0.00026575,2]
[357465476,1744075860734,-645.6,0.00026575,2]
[357465477,1744075860744,-560.24,0.00026575,2]
[357465478,1744075860754,-686.29,0.00026575,2]
[357465479,1744075860765,-644.83,0.00026575,2]
[357465480,1744075860774,-683.69,0.00026575,2]
[357465481,1744075860784,-963.6,0.00026575,2]
[357465482,1744075860794,-745.08,0.00026575,2]
[357465483,1744075860803,-5061.69,0.00026575,2]
[357465484,1744075860813,-1159.91,0.00026575,2]
[357465485,1744075860822,-1279.45,0.00026575,2]
[357465486,1744075860832,-643.68,0.00026575,2]
[357465487,1744075860842,-996.41,0.00026575,2]
[357465488,1744075860852,-645.19,0.00026575,2]
[357465489,1744075860861,-690.67,0.00026575,2]
[357465490,1744075860871,-886.21,0.00026575,2]
[357465491,1744075860881,-917.76,0.00026575,2]
[357465492,1744075860891,-500.0,0.00026575,2]
[357465493,1744075860902,-1205.86,0.00026575,2]
[357465494,1744075860912,-650.7,0.00026575,2]
[357465495,1744075860922,-441.75,0.00026575,2]
[357465496,1744075860932,-718.92,0.00026575,2]
[357465497,1744075860942,-906.03,0.00026575,2]
[357465498,1744075860953,-657.7,0.00026575,2]
[357465499,1744075860963,-1058.79,0.00026575,2]
[357465500,1744075860976,-1529.51,0.00026575,2]
[357465501,1744075860986,-500.0,0.00026575,2]
[357465502,1744075860995,-923.55,0.00026575,2]
[357465503,1744075861005,-605.62,0.00026575,2]
[357465504,1744075861015,-223.0315306,0.00026732,2]
[357465505,1744075861025,-684.93,0.00026849,2]
[357465506,1744075861035,-500.0,0.00026849,2]
[357465507,1744075861045,-627.85,0.00026849,2]
[357465508,1744075861055,-536.57,0.00026849,2]
[357465509,1744075861065,-539.51,0.00026849,2]
[357465510,1744075861075,-656.43,0.00026849,2]
[357465511,1744075861084,-562.19,0.00026849,2]
[357465512,1744075861094,-833.59,0.00026849,2]
[357465513,1744075861103,-500.0,0.00026849,2]
[357465514,1744075861113,-500.0,0.00026849,2]
[357465515,1744075861123,-511.39,0.00026849,2]
[357465516,1744075861133,-998.79,0.00026849,2]
[357465517,1744075861142,-706.46,0.00026849,2]
[357465518,1744075861152,-747.15,0.00026849,2]
[357465519,1744075861162,-613.65,0.00026849,2]
[357465520,1744075861172,-1243.28,0.00026849,2]
[357465521,1744075861181,-571.29,0.00026849,2]
[357465522,1744075861192,-1564.56,0.00026849,2]
[357465523,1744075861201,-806.0,0.00026849,2]
[357465524,1744075861211,-2890.56,0.00026849,2]
[357465525,1744075861224,-645.6,0.00026849,2]
[357465526,1744075861234,-560.24,0.00026849,2]
[357465527,1744075861244,-686.29,0.00026849,2]
[357465528,1744075861254,-644.83,0.00026849,2]
[357465529,1744075861264,-683.69,0.00026849,2]
[357465530,1744075861275,-963.6,0.00026849,2]
[357465531,1744075861286,-745.08,0.00026849,2]
[357465532,1744075861296,-5061.69,0.00026849,2]
[357465533,1744075861305,-1159.91,0.00026849,2]
[357465534,1744075861315,-1279.45,0.00026849,2]
[357465535,1744075861325,-643.68,0.00026849,2]
[357465536,1744075861336,-996.41,0.00026849,2]
[357465537,1744075861346,-645.19,0.00026849,2]
[357465538,1744075861356,-690.67,0.00026849,2]
[357465539,1744075861365,-886.21,0.00026849,2]
[357465540,1744075861375,-917.76,0.00026849,2]
[357465541,1744075861385,-500.0,0.00026849,2]
[357465542,1744075861394,-1205.86,0.00026849,2]
[357465543,1744075861404,-650.7,0.00026849,2]
[357465544,1744075861415,-718.92,0.00026849,2]
[357465545,1744075861426,-906.03,0.00026849,2]
[357465546,1744075861437,-657.7,0.00026849,2]
[357465547,1744075861447,-1058.79,0.00026849,2]
[357465548,1744075861458,-1529.51,0.00026849,2]
[357465549,1744075861472,-500.0,0.00026849,2]
[357465550,1744075861483,-923.55,0.00026849,2]
[357465551,1744075861492,-605.62,0.00026849,2]
[357465552,1744075861503,-436.44,0.00026871,14]
[357465553,1744075861512,-204.54017273,0.00026871,14]
[357465554,1744075861523,-684.93,0.00027123,2]
[357465555,1744075861533,-500.0,0.00027123,2]
[357465556,1744075861543,-627.85,0.00027123,2]
[357465557,1744075861553,-536.57,0.00027123,2]
[357465558,1744075861563,-539.51,0.00027123,2]
[357465559,1744075861574,-656.43,0.00027123,2]
[357465560,1744075861584,-562.19,0.00027123,2]
[357465561,1744075861599,-833.59,0.00027123,2]
[357465562,1744075861615,-500.0,0.00027123,2]
[357465563,1744075861626,-500.0,0.00027123,2]
[357465564,1744075861638,-511.39,0.00027123,2]
[357465565,1744075861648,-998.79,0.00027123,2]
[357465566,1744075861658,-706.46,0.00027123,2]
[357465567,1744075861668,-747.15,0.00027123,2]
[357465568,1744075861679,-613.65,0.00027123,2]
[357465569,1744075861690,-1243.28,0.00027123,2]
[357465570,1744075861700,-571.29,0.00027123,2]
[357465571,1744075861710,-1564.56,0.00027123,2]
[357465572,1744075861724,-806.0,0.00027123,2]
[357465573,1744075861735,-2890.56,0.00027123,2]
[357465574,1744075861745,-645.6,0.00027123,2]
[357465575,1744075861756,-560.24,0.00027123,2]
[357465576,1744075861767,-686.29,0.00027123,2]
[357465577,1744075861779,-644.83,0.00027123,2]
[357465578,1744075861790,-683.69,0.00027123,2]
[357465579,1744075861802,-963.6,0.00027123,2]
[357465580,1744075861813,-745.08,0.00027123,2]
[357465581,1744075861825,-5061.69,0.00027123,2]
[357465582,1744075861837,-1159.91,0.00027123,2]
[357465583,1744075861849,-1279.45,0.00027123,2]
[357465584,1744075861861,-643.68,0.00027123,2]
[357465585,1744075861876,-996.41,0.00027123,2]
[357465586,1744075861891,-645.19,0.00027123,2]
[357465587,1744075861902,-690.67,0.00027123,2]
[357465588,1744075861914,-886.21,0.00027123,2]
[357465589,1744075861926,-917.76,0.00027123,2]
[357465590,1744075861937,-500.0,0.00027123,2]
[357465591,1744075861949,-1205.86,0.00027123,2]
[357465592,1744075861959,-650.7,0.00027123,2]
[357465593,1744075861977,-718.92,0.00027123,2]
[357465594,1744075861989,-906.03,0.00027123,2]
[357465595,1744075862056,-657.7,0.00027123,2]
[357465596,1744075862068,-1058.79,0.00027123,2]
[357465597,1744075862078,-1529.51,0.00027123,2]
[357465598,1744075862088,-546.08367449,0.00027123,2]
[357465599,1744075862098,-923.55,0.00027123,2]
[357465600,1744075862108,-605.62,0.00027123,2]
[357465601,1744075862118,-684.93,0.00027397,2]
[357465602,1744075862127,-500.0,0.00027397,2]
[357465603,1744075862139,-627.85,0.00027397,2]
[357465604,1744075862150,-536.57,0.00027397,2]
[357465605,1744075862162,-539.51,0.00027397,2]
[357465606,1744075862173,-656.43,0.00027397,2]
[357465607,1744075862184,-562.19,0.00027397,2]
[357465608,1744075862194,-833.59,0.00027397,2]
[357465609,1744075862204,-609.34562964,0.00027397,2]
[357465610,1744075862214,-517.74585631,0.00027397,2]
[357465611,1744075862227,-511.39,0.00027397,2]
[357465612,1744075862238,-998.79,0.00027397,2]
[357465613,1744075862247,-706.46,0.00027397,2]
[357465614,1744075862257,-747.15,0.00027397,2]
[357465615,1744075862267,-613.65,0.00027397,2]
[357465616,1744075862276,-1243.28,0.00027397,2]
[357465617,1744075862286,-571.29,0.00027397,2]
[357465618,1744075862296,-1564.56,0.00027397,2]
[357465619,1744075862305,-806.0,0.00027397,2]
[357465620,1744075862315,-2890.56,0.00027397,2]
[357465621,1744075862324,-645.6,0.00027397,2]
[357465622,1744075862334,-560.24,0.00027397,2]
[357465623,1744075862343,-686.29,0.00027397,2]
[357465624,1744075862353,-644.83,0.00027397,2]
[357465625,1744075862364,-683.69,0.00027397,2]
[357465626,1744075862373,-963.6,0.00027397,2]
[357465627,1744075862384,-745.08,0.00027397,2]
[357465628,1744075862395,-5061.69,0.00027397,2]
[357465629,1744075862406,-1159.91,0.00027397,2]
[357465630,1744075862416,-1279.45,0.00027397,2]
[357465631,1744075862425,-643.68,0.00027397,2]
[357465632,1744075862434,-996.41,0.00027397,2]
[357465633,1744075862444,-645.19,0.00027397,2]
[357465634,1744075862453,-690.67,0.00027397,2]
[357465635,1744075862463,-886.21,0.00027397,2]
[357465636,1744075862474,-917.76,0.00027397,2]
[357465637,1744075862483,-500.0,0.00027397,2]
[357465638,1744075862492,-1205.86,0.00027397,2]
[357465639,1744075862502,-650.7,0.00027397,2]
[357465640,1744075862512,-500.0,0.00027397,2]
[357465641,1744075862521,-718.92,0.00027397,2]
[357465642,1744075862531,-906.03,0.00027397,2]
[357465643,1744075862540,-657.7,0.00027397,2]
[357465644,1744075862551,-1058.79,0.00027397,2]
[357465645,1744075862562,-1529.51,0.00027397,2]
[357465646,1744075862572,-344.52903144,0.00027397,2]
[357465647,1744075862582,-923.55,0.00027397,2]
[357465648,1744075862596,-605.62,0.00027397,2]
[357465649,1744075862609,-159.06929,0.00027397,120]
[357465650,1744075862620,-684.93,0.00027671,2]
[357465651,1744075862630,-500.0,0.00027671,2]
[357465652,1744075862641,-627.85,0.00027671,2]
[357465653,1744075862651,-536.57,0.00027671,2]
[357465654,1744075862661,-539.51,0.00027671,2]
[357465655,1744075862671,-656.43,0.00027671,2]
[357465656,1744075862683,-562.19,0.00027671,2]
[357465657,1744075862694,-833.59,0.00027671,2]
[357465658,1744075862704,-511.39,0.00027671,2]
[357465659,1744075862715,-998.79,0.00027671,2]
[357465660,1744075862732,-706.46,0.00027671,2]
[357465661,1744075862743,-747.15,0.00027671,2]
[357465662,1744075862754,-613.65,0.00027671,2]
[357465663,1744075862765,-1243.28,0.00027671,2]
[357465664,1744075862777,-571.29,0.00027671,2]
[357465665,1744075862788,-1564.56,0.00027671,2]
[357465666,1744075862799,-806.0,0.00027671,2]
[357465667,1744075862811,-2890.56,0.00027671,2]
[357465668,1744075862821,-645.6,0.00027671,2]
[357465669,1744075862832,-560.24,0.00027671,2]
[357465670,1744075862842,-686.29,0.00027671,2]
[357465671,1744075862852,-644.83,0.00027671,2]
[357465672,1744075862863,-683.69,0.00027671,2]
[357465673,1744075862874,-963.6,0.00027671,2]
[357465674,1744075862884,-745.08,0.00027671,2]
[357465675,1744075862895,-5061.69,0.00027671,2]
[357465676,1744075862907,-1159.91,0.00027671,2]
[357465677,1744075862917,-1279.45,0.00027671,2]
[357465678,1744075862928,-643.68,0.00027671,2]
[357465679,1744075862940,-996.41,0.00027671,2]
[357465680,1744075862952,-645.19,0.00027671,2]
[357465681,1744075862963,-690.67,0.00027671,2]
[357465682,1744075862980,-886.21,0.00027671,2]
[357465683,1744075862991,-917.76,0.00027671,2]
[357465684,1744075863002,-500.0,0.00027671,2]
[357465685,1744075863012,-1205.86,0.00027671,2]
[357465686,1744075863023,-650.7,0.00027671,2]
[357465687,1744075863034,-718.92,0.00027671,2]
[357465688,1744075863044,-906.03,0.00027671,2]
[357465689,1744075863055,-657.7,0.00027671,2]
[357465690,1744075863065,-1058.79,0.00027671,2]
[357465691,1744075863076,-1529.51,0.00027671,2]
[357465692,1744075863087,-923.55,0.00027671,2]
[357465693,1744075863099,-605.62,0.00027671,2]
[357465694,1744075863109,-18936.01775108,0.000277,2]
[357465695,1744075863119,-684.93,0.00027945,2]
[357465696,1744075863129,-500.0,0.00027945,2]
[357465697,1744075863139,-627.85,0.00027945,2]
[357465698,1744075863149,-536.57,0.00027945,2]
[357465699,1744075863160,-539.51,0.00027945,2]
[357465700,1744075863171,-656.43,0.00027945,2]
[357465701,1744075863182,-562.19,0.00027945,2]
[357465702,1744075863192,-833.59,0.00027945,2]
[357465703,1744075863203,-511.39,0.00027945,2]
[357465704,1744075863213,-998.79,0.00027945,2]
[357465705,1744075863227,-706.46,0.00027945,2]
[357465706,1744075863238,-747.15,0.00027945,2]
[357465707,1744075863249,-613.65,0.00027945,2]
[357465708,1744075863261,-1243.28,0.00027945,2]
[357465709,1744075863272,-571.29,0.00027945,2]
[357465710,1744075863284,-1564.56,0.00027945,2]
[357465711,1744075863294,-806.0,0.00027945,2]
[357465712,1744075863304,-2890.56,0.00027945,2]
[357465713,1744075863315,-645.6,0.00027945,2]
[357465714,1744075863325,-560.24,0.00027945,2]
[357465715,1744075863336,-686.29,0.00027945,2]
[357465716,1744075863346,-644.83,0.00027945,2]
[357465717,1744075863358,-683.69,0.00027945,2]
[357465718,1744075863368,-963.6,0.00027945,2]
[357465719,1744075863379,-745.08,0.00027945,2]
[357465720,1744075863389,-5061.69,0.00027945,2]
[357465721,1744075863399,-1159.91,0.00027945,2]
[357465722,1744075863410,-1279.45,0.00027945,2]
[357465723,1744075863420,-643.68,0.00027945,2]
[357465724,1744075863430,-996.41,0.00027945,2]
[357465725,1744075863440,-645.19,0.00027945,2]
[357465726,1744075863450,-690.67,0.00027945,2]
[357465727,1744075863460,-886.21,0.00027945,2]
[357465728,1744075863469,-917.76,0.00027945,2]
[357465729,1744075863485,-419.68,0.00027945,2]
[357465730,1744075863495,-1205.86,0.00027945,2]
[357465731,1744075863506,-650.7,0.00027945,2]
[357465732,1744075863517,-718.92,0.00027945,2]
[357465733,1744075863527,-906.03,0.00027945,2]
[357465734,1744075863538,-657.7,0.00027945,2]
[357465735,1744075863549,-1058.79,0.00027945,2]
[357465736,1744075863563,-1529.51,0.00027945,2]
[357465737,1744075863574,-923.55,0.00027945,2]
[357465738,1744075863585,-231.28369723,0.00028101,2]
[357465739,1744075863597,-1000.0,0.00028152,2]
[357465740,1744075863609,-1000.0,0.00028152,5]
[357465741,1744075863621,-1000.0,0.00028152,5]
[357465742,1744075863634,-1000.0,0.00028152,5]
[357465743,1744075863646,-1000.0,0.00028152,5]
[357465744,1744075863657,-1000.0,0.00028152,5]
[357465745,1744075863669,-224.84517403,0.00028152,5]
[357465746,1744075863683,-1000.0,0.00028152,5]
[357465747,1744075863696,-1000.0,0.00028152,5]
[357465748,1744075863708,-1000.0,0.00028152,5]
[357465749,1744075863720,-1000.0,0.00028152,2]
[357465750,1744075863739,-1000.0,0.00028152,5]
[357465751,1744075863751,-1000.0,0.00028152,5]
[357465752,1744075863763,-1000.0,0.00028152,5]
[357465753,1744075863774,-1000.0,0.00028152,5]
[357465754,1744075863786,-1000.0,0.00028152,5]
[357465755,1744075863798,-1000.0,0.00028152,5]
[357465756,1744075863809,-1000.0,0.00028152,5]
[357465757,1744075863820,-685.01754438,0.00028219,2]
[357465758,1744075863832,-375.31577496,0.00028219,2]
[357465759,1744075863842,-627.89960162,0.00028219,2]
[357465760,1744075863853,-536.79291464,0.00028219,2]
[357465761,1744075863864,-539.57971226,0.00028219,2]
[357465762,1744075863875,-656.65378136,0.00028219,2]
[357465763,1744075863887,-562.36,0.00028219,2]
[357465764,1744075863897,-833.80790896,0.00028219,2]
[357465765,1744075863908,-511.57774188,0.00028219,2]
[357465766,1744075863918,-999.0,0.00028219,2]
[357465767,1744075863930,-706.69785815,0.00028219,2]
[357465768,1744075863941,-747.28,0.00028219,2]
[357465769,1744075863952,-613.81,0.00028219,2]
[357465770,1744075863963,-1243.46,0.00028219,2]
[357465771,1744075863979,-571.33,0.00028219,2]
[357465772,1744075863991,-1564.67,0.00028219,2]
[357465773,1744075864002,-806.12,0.00028219,2]
[357465774,1744075864014,-2890.8,0.00028219,2]
[357465775,1744075864026,-645.83502017,0.00028219,2]
[357465776,1744075864037,-560.32,0.00028219,2]
[357465777,1744075864049,-686.49,0.00028219,2]
[357465778,1744075864061,-644.9,0.00028219,2]
[357465779,1744075864077,-683.74,0.00028219,2]
[357465780,1744075864089,-963.7,0.00028219,2]
[357465781,1744075864101,-745.27,0.00028219,2]
[357465782,1744075864114,-5061.9,0.00028219,2]
[357465783,1744075864126,-1160.03413917,0.00028219,2]
[357465784,1744075864137,-1279.56,0.00028219,2]
[357465785,1744075864148,-643.76,0.00028219,2]
[357465786,1744075864160,-996.64,0.00028219,2]
[357465787,1744075864172,-645.39,0.00028219,2]
[357465788,1744075864184,-690.71634444,0.00028219,2]
[357465789,1744075864196,-886.38,0.00028219,2]
[357465790,1744075864207,-917.89,0.00028219,2]
[357465791,1744075864218,-1206.07,0.00028219,2]
[357465792,1744075864239,-650.73227447,0.00028219,2]
[357465793,1744075864250,-719.04,0.00028219,2]
[357465794,1744075864261,-906.13,0.00028219,2]
[357465795,1744075864272,-657.92199116,0.00028219,2]
[357465796,1744075864283,-1058.89743335,0.00028219,2]
[357465797,1744075864294,-1529.72915636,0.00028219,2]
[357465798,1744075864304,-923.57375548,0.00028219,2]
[357465799,1744075864315,-1313.85365769,0.00028274,2]
[357465800,1744075864325,-150.584,0.00028769,2]
[357465801,1744075864336,-543.0,0.00029201,2]
[357465802,1744075864347,-2254.0,0.00029201,2]
[357465803,1744075864358,-401.0,0.00029201,2]
[357465804,1744075864369,-239.84119403,0.0002947,2]
[357465805,1744075864381,-2000.0,0.00029815,4]
[357465806,1744075864391,-1365.52597649,0.0003,7]
[357465807,1744075864402,-153.67999901,0.0003,2]
[357465808,1744075864412,-248.71531821,0.00030839,2]
[357465809,1744075864422,-1000.0,0.00031434,5]
[357465810,1744075864432,-179.91004498,0.00031512,7]
[357465811,1744075864444,-1000.0,0.00031687,5]
[357465812,1744075864455,-1000.0,0.00031724,5]
[357465813,1744075864466,-500.0,0.00031724,5]
[357465814,1744075864483,-150.0,0.00031769,2]
[357465815,1744075864494,-922.963,0.00032201,2]
[357465816,1744075864505,-257.91778498,0.00032208,2]
[357465817,1744075864515,-160.0,0.00032288,3]
[357465818,1744075864526,-160.0,0.00032768,4]
[357465819,1744075864536,-151.0,0.00033,2]
[357465820,1744075864547,-2000.0,0.0003321,4]
[357465821,1744075864557,-160.0,0.00033249,5]
[357465822,1744075864568,-296.98794546,0.00033577,2]
[357465823,1744075864579,-160.0,0.00033729,6]
[357465824,1744075864591,-160.0,0.00034209,7]
[357465825,1744075864603,-151.0,0.000343,12]
[357465826,1744075864613,-160.0,0.00034689,8]
[357465827,1744075864623,-175.5133285,0.00034693,2]
[357465828,1744075864635,-151.0,0.00034693,2]
[357465829,1744075864645,-150.0,0.00034769,2]
[357465830,1744075864655,-160.0,0.0003517,9]
[357465831,1744075864666,-2200.0,0.00035511,7]
[357465832,1744075864677,-500.0,0.00035511,7]
[357465833,1744075864688,-160.0,0.00035606,3]
[357465834,1744075864698,-419.36665037,0.0003561,3]
[357465835,1744075864709,-160.0,0.0003561,3]
[357465836,1744075864719,-12527.9349248,0.0003561,3]
[357465837,1744075864733,-160.0,0.0003561,3]
[357465838,1744075864744,-783.73948285,0.0003561,3]
[357465839,1744075864755,-150.09,0.00035616,7]
[357465840,1744075864765,-150.09,0.00035616,7]
[357465841,1744075864776,-300.0,0.00035616,7]
[357465842,1744075864788,-150.09,0.00035616,7]
[357465843,1744075864799,-500.0,0.00035616,7]
[357465844,1744075864809,-150.09,0.00035616,7]
[357465845,1744075864820,-300.0,0.00035616,7]
[357465846,1744075864830,-150.09,0.00035616,7]
[357465847,1744075864841,-150.09,0.00035616,7]
[357465848,1744075864851,-150.09,0.00035616,7]
[357465849,1744075864863,-150.09,0.00035616,7]
[357465850,1744075864874,-150.09,0.00035616,7]
[357465851,1744075864885,-150.09,0.00035616,7]
[357465852,1744075864896,-300.0,0.00035616,7]
[357465853,1744075864907,-150.09,0.00035616,7]
[357465854,1744075864918,-150.09,0.00035616,7]
[357465855,1744075864928,-151.0,0.00035616,14]
[357465856,1744075864939,-150.09,0.00035616,7]
[357465857,1744075864949,-150.09,0.00035616,7]
[357465858,1744075864960,-150.09,0.00035616,7]
[357465859,1744075864970,-151.0,0.00035616,14]
[357465860,1744075864983,-150.09,0.00035616,7]
[357465861,1744075864993,-150.09,0.00035616,7]
[357465862,1744075865003,-169.421274,0.00035616,14]
[357465863,1744075865013,-151.0,0.00035616,14]
[357465864,1744075865025,-169.421274,0.00035616,14]
[357465865,1744075865035,-150.97968269,0.00035616,7]
[357465866,1744075865046,-150.09,0.00035616,7]
[357465867,1744075865056,-150.09,0.00035616,7]
[357465868,1744075865066,-150.09,0.00035616,7]
[357465869,1744075865076,-500.0,0.00035616,7]
[357465870,1744075865087,-500.0,0.00035616,7]
[357465871,1744075865098,-500.0,0.00035616,7]
[357465872,1744075865109,-500.0,0.00035616,7]
[357465873,1744075865119,-500.0,0.00035616,7]
[357465874,1744075865130,-500.0,0.00035616,7]
[357465875,1744075865140,-500.0,0.00035616,7]
[357465876,1744075865151,-500.0,0.00035616,7]
[357465877,1744075865163,-500.0,0.00035616,7]
[357465878,1744075865174,-500.0,0.00035616,7]
[357465879,1744075865185,-500.0,0.00035616,7]
[357465880,1744075865196,-500.0,0.00035616,7]
[357465881,1744075865207,-500.0,0.00035616,7]
[357465882,1744075865218,-500.0,0.00035616,7]
[357465883,1744075865233,-500.29432207,0.00035616,7]
[357465884,1744075865244,-500.0,0.00035616,7]
[357465885,1744075865255,-500.0,0.00035616,7]
[357465886,1744075865266,-500.0,0.00035616,7]
[357465887,1744075865276,-500.0,0.00035616,7]
[357465888,1744075865286,-500.0,0.00035616,7]
[357465889,1744075865297,-500.0,0.00035616,7]
[357465890,1744075865306,-500.0,0.00035616,7]
[357465891,1744075865316,-500.0,0.00035616,7]
[357465892,1744075865326,-500.0,0.00035616,7]
[357465893,1744075865336,-500.0,0.00035616,7]
[357465894,1744075865347,-500.0,0.00035616,7]
[357465895,1744075865357,-500.0,0.00035616,7]
[357465896,1744075865367,-500.0,0.00035616,7]
[357465897,1744075865377,-500.0,0.00035616,7]
[357465898,1744075865388,-500.0,0.00035616,7]
[357465899,1744075865398,-500.0,0.00035616,7]
[357465900,1744075865408,-500.0,0.00035616,7]
[357465901,1744075865419,-500.0,0.00035616,7]
[357465902,1744075865430,-500.0,0.00035616,7]
[357465903,1744075865440,-500.0,0.00035616,7]
[357465904,1744075865450,-500.0,0.00035616,7]
[357465905,1744075865460,-419.36665037,0.0003562,7]
[357465906,1744075865471,-160.0,0.0003562,7]
[357465907,1744075865484,-160.0,0.0003562,7]
[357465908,1744075865495,-783.73948285,0.0003562,7]
[357465909,1744075865505,-160.0,0.0003565,10]
[357465910,1744075865515,-160.0,0.0003565,5]
[357465911,1744075865525,-200775.10638261,0.000357,30]
[357465912,1744075865775,-501.01655442,0.00021917,2]
[357465913,1744075865786,-160.0,0.00024534,2]
[357465914,1744075865797,-1846.61,0.00024931,2]
[357465915,1744075865807,-1846.61,0.00025205,2]
[357465916,1744075865817,-1846.61,0.00025479,2]
[357465917,1744075865826,-1846.61,0.00025753,2]
[357465918,1744075865836,-1846.61,0.00026027,2]
[357465919,1744075865846,-1846.61,0.00026301,2]
[357465920,1744075865856,-1846.61,0.00026575,2]
[357465921,1744075865866,-1846.61,0.00026849,2]
[357465922,1744075865876,-605.62,0.00027945,2]
[357465923,1744075865887,-605.64434507,0.00028219,2]
[357465924,1744075865897,-151.0,0.00034521,2]
[357465925,1744075865908,-153.27063502,0.00035616,7]
[357465926,1744075865918,-151.07798516,0.00035616,7]
[357465927,1744075865928,-57695.83789252,0.000357,30]
[357465928,1744075866337,-27.94171057,0.00021917,2]
[357465929,1744075866385,-472.05828943,0.00021917,2]
[357465930,1744075866395,-500.0,0.00021917,2]
[357465931,1744075866408,-500.0,0.00022191,2]
[357465932,1744075866420,-500.0,0.00022191,2]
[357465933,1744075866431,-500.0,0.00022465,2]
[357465934,1744075866441,-500.0,0.00022465,2]
[357465935,1744075866452,-500.0,0.00022739,2]
[357465936,1744075866464,-500.0,0.00023013,2]
[357465937,1744075866478,-1846.61,0.00027123,2]
[357465938,1744075866488,-1846.61,0.00027397,2]
[357465939,1744075866498,-360.49287533,0.00027671,2]
[357465940,1744075866649,-500.0,0.00021917,2]
[357465941,1744075866659,-500.0,0.00022191,2]
[357465942,1744075866668,-500.0,0.00022465,2]
[357465943,1744075866678,-500.0,0.00022739,2]
[357465944,1744075866688,-559.48364838,0.00022739,2]
[357465945,1744075866697,-500.0,0.00023013,2]
[357465946,1744075866707,-500.0,0.00023287,2]
[357465947,1744075866716,-500.0,0.00023287,2]
[357465948,1744075866730,-500.0,0.00023561,2]
[357465949,1744075866740,-500.0,0.00023561,2]
[357465950,1744075866750,-500.0,0.00023835,2]
[357465951,1744075866760,-500.0,0.00023835,2]
[357465952,1744075866769,-500.0,0.00024109,2]
[357465953,1744075866779,-500.0,0.00024109,2]
[357465954,1744075866789,-500.0,0.00024383,2]
[357465955,1744075866798,-500.0,0.00024383,2]
[357465956,1744075866808,-500.0,0.00024657,2]
[357465957,1744075866818,-500.0,0.00024657,2]
[357465958,1744075866828,-500.0,0.00024931,2]
[357465959,1744075866838,-500.0,0.00024931,2]
[357465960,1744075866848,-500.0,0.00025205,2]
[357465961,1744075866858,-500.0,0.00025205,2]
[357465962,1744075866868,-500.0,0.00025479,2]
[357465963,1744075866879,-500.0,0.00025479,2]
[357465964,1744075866889,-500.0,0.00025753,2]
[357465965,1744075866899,-1486.11712467,0.00027671,2]
[357465966,1744075866909,-1846.61,0.00027945,2]
[357465967,1744075866919,-1846.67960793,0.00028219,2]
[357465968,1744075866929,-41892.06084677,0.000357,30]
[357465969,1744075866939,-1851.98,0.000357,7]
[357465970,1744075866949,-150.0,0.000357,81]
[357465971,1744075866959,-419.36665037,0.000357,30]
[357465972,1744075866969,-500.0,0.000357,13]